Cogmind - Beta 17 @@@ ROGUE MODE // 2026.06.25 @ 22:34:57 Player: Axer654 Result: Destroyed by 00-AYY(R) with Subdweller Shrapnel Launcher Performance ------------- Evolutions (0) 0 Regions Visited (3) 600 Robots Destroyed (17) 85 Value Destroyed (297) 297 Prototype IDs (0) 0 Alien Tech Used (0) 0 Bonus (-12) -12 TOTAL SCORE: 970 Bonus ------- Friendly Fire -12 Cogmind --------- Core Integrity 0/250 Matter 244/300 Energy 125/125 System Corruption 0% Temperature Cool (0) Movement Treading (160) Location -10/Subcaves Parts ------- > --- POWER (1) -------- Light Ion Engine > --- PROPULSION (2) --- Light Treads Light Treads > --- UTILITY (2) ------ Improved Heat Sink Small Storage Unit > --- WEAPON (2) ------- Barrage Gun > --- INVENTORY (8) ---- Subdweller Optics Light Assault Rifle Light Assault Rifle Peak State ------------ > --- POWER ------------ Light Ion Engine > --- PROPULSION ------- Light Treads Light Treads > --- UTILITY ---------- Improved Heat Sink Small Storage Unit > --- WEAPON ----------- Barrage Gun Grenade Launcher > --- INVENTORY -------- Light Assault Rifle Light Assault Rifle [Rating: 11] Favorites ----------- Power Ion Engine Engine Ion Engine Propulsion Aluminum Leg Treads Light Treads Leg Aluminum Leg Utility Small Storage Unit Device Improved Heat Sink Storage Small Storage Unit Protection Weapon Shielding Weapon Assault Rifle Ballistic Gun Assault Rifle Launcher Grenade Launcher Build | -11 -10 -10 -10 ------- Run | Yrd Mat Min Sub Slots Evolved . | . . . . Power . | . . . . Propulsion . | . . . . Utility . | . . . . Weapon . | . . . . Parts Attached 19 | 6 7 1 5 Power 3 | 1 . 1 1 Engine 3 | 1 . 1 1 Core . | . . . . Reactor . | . . . . Propulsion 6 | 2 3 . 1 Treads 2 | . 1 . 1 Leg 4 | 2 2 . . Wheel . | . . . . Hover . | . . . . Flight . | . . . . Utility 4 | 1 2 . 1 Device 2 | . 1 . 1 Storage 1 | 1 . . . Processor . | . . . . Hackware . | . . . . Protection 1 | . 1 . . Artifact . | . . . . Weapon 6 | 2 2 . 2 Energy Gun . | . . . . Energy Cannon . | . . . . Ballistic Gun 5 | 2 2 . 1 Ballistic Cannon . | . . . . Launcher 1 | . . . 1 Special Weapon . | . . . . Impact Weapon . | . . . . Slashing Weapon . | . . . . Piercing Weapon . | . . . . Special Melee Weapon . | . . . . Unidentified Prototypes . | . . . . Parts Lost 8 | . . 1 7 Power 2 | . . 1 1 Propulsion 2 | . . . 2 Utility 1 | . . . 1 Weapon 3 | . . . 3 Highest Loss Streak 6 | . . 1 6 To Critical Strikes 1 | . . . 1 Average Backups 6 | 2 6 7 5 Power 1 | . 1 1 . Propulsion 3 | 1 3 3 2 Utility . | . . . . Weapon 2 | . 1 3 2 Tool/Special . | . . . . Unused Backups 4 | . 4 . . Power . | . . . . Propulsion 4 | . 4 . . Utility . | . . . . Weapon . | . . . . Tool/Special . | . . . . Average Slot Usage (%) 91 | . 90 97 87 Engine 12 | . 13 11 10 Treads 1 | . . . 8 Leg 25 | . 27 28 14 Device 1 | . 1 . 3 Storage 13 | . 13 14 14 Protection 8 | . 5 14 8 Ballistic Gun 26 | . 27 28 19 Launcher 1 | . . . 6 Peak Build Rating 11 | 6 9 7 11 Average Rating 6 | 4 6 6 7 On Entrance 5 | . 6 7 7 Avg Prop Armor Cover (%) . | . . . . Naked Turns 3 | . 3 . . Heaviest Build 15 | 13 15 15 15 Greatest Support 40 | 20 20 20 40 Greatest Overweight (x) 2 | 1 1 . 2 Average Overweight (x) . | . . . . Largest Inventory Capacity 8 | 8 8 8 8 Average Capacity 7 | 6 7 8 8 Most Carried 8 | 6 8 8 7 Average Carried 6 | 3 6 7 5 Final Capacity 8 | 8 8 8 8 Final Carried 8 | 6 8 7 3 Class Distribution -------------------- 100% | Mutant Dominant Class ---------------- Mutant | -10/Materials Mutant | -10/Mines Mutant | -10/Subcaves Resources | -11 -10 -10 -10 ----------- Run | Yrd Mat Min Sub Matter Collected 712 | 245 324 71 72 Remotely . | . . . . Salvage Created 332 | . 183 91 58 Parts 31 | . 19 9 3 Haulers Intercepted . | . . . . Recyclers Shooed 1 | . . 1 . Parts Field Recycled . | . . . . Retrieved Matter . | . . . . Parts Self-Destructed . | . . . . Prevented . | . . . . Parts Restored . | . . . . Kills | -11 -10 -10 -10 ------- Run | Yrd Mat Min Sub Combat Hostiles Destroyed 16 | . 8 6 2 Guns 14 | . 8 6 . AOE 2 | . . . 2 Classes Destroyed 4 | . 3 . 1 Operator 1 | . 1 . . Swarmer 12 | . 6 6 . Grunt 2 | . 2 . . Subdweller 2 | . . . 2 Best Kill Streak 3 | . 3 3 2 Combat Bots Only 3 | . 2 3 2 Max Kills in Single Turn 2 | . 2 1 1 Gunslinging 1 | . 1 . . Exploded 1 | . . . 1 Melee . | . . . . Uniques/NPCs Destroyed . | . . . . Combat | -11 -10 -10 -10 -------- Run | Yrd Mat Min Sub Hostile Shots Fired 113 | . 57 24 32 Missed 34 | . 16 9 9 Hits 79 | . 41 15 23 Projectile 79 | . 41 15 23 AOE 2 | . . . 2 Critical Strikes 1 | . . . 1 Damage Taken 1098 | . 426 118 554 Core 254 | . 87 24 143 Absorbed by Shields . | . . . . Redirected to Shielding 53 | . 13 12 28 Core Remaining (%) 100 | 100 . . . Volleys Fired 59 | . 37 11 11 Largest 2 | . 2 2 2 Hottest 50 | . 40 40 50 Shots Fired 117 | . 74 22 21 Gun 113 | . 74 22 17 Cannon . | . . . . Launcher 4 | . . . 4 Special . | . . . . Kinetic 113 | . 74 22 17 Thermal . | . . . . Explosive 4 | . . . 4 Electromagnetic . | . . . . Robot Hit Streak 10 | . 10 8 6 Robot Miss Streak 4 | . 4 3 1 Penetration Max . | . . . . Secondary Targets 4 | . 2 2 . Max Gunslinging Chain 1 | . 1 1 . Shots Hit Robots 72 | . 43 12 17 Core Hits 27 | . 14 9 4 Critical Kills 1 | . 1 . . Critical Parts Destroyed . | . . . . Critical Strikes 1 | . 1 . . Destroy 1 | . 1 . . Melee Attacks . | . . . . Impact . | . . . . Slashing . | . . . . Piercing . | . . . . Sneak Attacks . | . . . . Combat Hostiles . | . . . . Follow-up Attacks . | . . . . Damage Inflicted 998 | . 485 169 344 Guns 738 | . 481 149 108 Cannons . | . . . . Explosions 236 | . . . 236 Melee . | . . . . Ramming 24 | . 4 20 . Kinetic 738 | . 481 149 108 Thermal . | . . . . Explosive 236 | . . . 236 Electromagnetic . | . . . . Impact . | . . . . Slashing . | . . . . Piercing . | . . . . Highest Corruption . | . . . . Average Corruption . | . . . . Corruption Purged . | . . . . Corruption Blocked . | . . . . Overload Shots . | . . . . Overflow Damage 1 | . . . 1 Projectiles . | . . . . Explosions 1 | . . . 1 Melee . | . . . . Knockbacks . | . . . . Impact . | . . . . Kinetic . | . . . . Secondary . | . . . . Self-Inflicted Damage 52 | . . . 52 Shots 4 | . . . 4 Rammed . | . . . . Targets Rammed 7 | . 1 6 . Kicked 7 | . 1 6 . Crushed . | . . . . Highest Temperature 9 | . 9 . . Average Temperature 9 | . 9 . . Received Heat Transfer 264 | . 144 . 120 Siege Activations . | . . . . Martial Activations . | . . . . Shielding Activations . | . . . . Robots Disrupted . | . . . . Combat Hostiles . | . . . . Robots Corrupted . | . . . . Combat Hostiles . | . . . . Parts Fried . | . . . . Impact Corruptions . | . . . . Robots Melted . | . . . . Combat Hostiles . | . . . . Parts Melted . | . . . . Heat Transferred . | . . . . Parts Sabotaged . | . . . . Parts Stolen . | . . . . Parts Stripped . | . . . . Power Chain Reactions . | . . . . Alert | -11 -10 -10 -10 ------- Run | Yrd Mat Min Sub Maximum Alert Level . | . . . . Low Security (%) 100 | 100 100 100 . Level 1 . | . . . . Level 2 . | . . . . Level 3 . | . . . . Level 4 . | . . . . Level 5 . | . . . . High Security . | . . . . Max Security . | . . . . Peak Influence 115 | . 115 115 . Initial . | . . . . Average 39 | . 35 53 . Influence Increases 435 | . 280 155 . Destroy 0b10 Robot/C 280 | . 160 120 . Destroy 0b10 Robot/NC 5 | . 5 . . Destroy Leader 50 | . 30 20 . Successful Hack 24 | . 24 . . Destroy Structure 1 | . 1 . . Lose Combat Pursuer 75 | . 60 15 . Influence Decreases 435 | . 280 155 . Time Decay 337 | . 182 155 . Purge Threat 98 | . 98 . . Squads Dispatched . | . . . . Investigation . | . . . . Extermination . | . . . . Reinforcement . | . . . . Assault . | . . . . Garrison . | . . . . Intercept . | . . . . Searches Triggered . | . . . . Construction Impeded . | . . . . Haulers Reinforced . | . . . . Active Scanning Responses . | . . . . Cargo Convoy Interrupts . | . . . . Stealth | -11 -10 -10 -10 --------- Run | Yrd Mat Min Sub Distress Signals 2 | . 2 . . Communications Jammed . | . . . . Distress Signals . | . . . . Times Spotted 31 | . 20 7 4 Peak Tracking Total 6 | . 6 3 2 Tactical Retreats 4 | . 3 1 . Traps | -11 -10 -10 -10 ------- Run | Yrd Mat Min Sub Traps Triggered . | . . . . Indirectly . | . . . . Trap Hack Attempts . | . . . . Triggered . | . . . . Disarmed . | . . . . Reprogrammed . | . . . . Reused . | . . . . Traps Extracted . | . . . . Installed . | . . . . Triggered . | . . . . Machines | -11 -10 -10 -10 ---------- Run | Yrd Mat Min Sub Machines Disabled . | . . . . Max in Single Turn . | . . . . Machines Repaired . | . . . . Machines Dismantled . | . . . . Machines Sabotaged . | . . . . Overloaded Fab Kills . | . . . . Hacking | -11 -10 -10 -10 --------- Run | Yrd Mat Min Sub Machines Accessed 7 | . 7 . . Terminals 6 | . 6 . . Fabricators . | . . . . Repair Stations . | . . . . Recycling Units 1 | . 1 . . Scanalyzers . | . . . . Garrison Access . | . . . . Total Hacks 16 | . 16 . . Successful 11 | . 11 . . Failed 5 | . 5 . . Catastrophic 3 | . 3 . . Database Lockouts . | . . . . Manual 12 | . 12 . . Terminals 14 | . 14 . . Fabricators . | . . . . Repair Stations . | . . . . Recycling Units 2 | . 2 . . Scanalyzers . | . . . . Garrison Access . | . . . . Terminal Hacks 10 | . 10 . . Branch Access Points 1 | . 1 . . Emergency Access Points 1 | . 1 . . Alert Level 2 | . 2 . . Unreport Threat 2 | . 2 . . Locate Traps 1 | . 1 . . Zone Layout 3 | . 3 . . Fabricator Hacks . | . . . . Repair Station Hacks . | . . . . Recycling Unit Hacks 1 | . 1 . . Retrieve Matter 1 | . 1 . . Scanalyzer . | . . . . Garrison Access Hacks . | . . . . Unauthorized Hacks . | . . . . Terminals . | . . . . Fabricators . | . . . . Repair Stations . | . . . . Recycling Units . | . . . . Scanalyzers . | . . . . Garrison Access . | . . . . Data Cores Recovered . | . . . . Used . | . . . . Hacking Detections 6 | . 6 . . Full Trace Events . | . . . . Feedback Events . | . . . . Feedback Blocked . | . . . . Robot Schematics Acquired . | . . . . Robots Built . | . . . . Authchips . | . . . . Time . | . . . . Total Robot Build Rating . | . . . . Part Schematics Acquired . | . . . . Parts Built . | . . . . Authchips . | . . . . Time . | . . . . Total Part Build Rating . | . . . . Part Studies Acquired . | . . . . Parts Repaired . | . . . . Time . | . . . . Parts Recycled . | . . . . Recycled Matter . | . . . . Retrieved Matter . | . . . . Retrieved Components . | . . . . Parts Scanalyzed . | . . . . Part Schematics Acquired . | . . . . Parts Damaged . | . . . . Bothacking | -11 -10 -10 -10 ------------ Run | Yrd Mat Min Sub Used RIF Installer . | . . . . Robots Hacked . | . . . . Non-combat . | . . . . Combat . | . . . . Robot Hacks Applied . | . . . . Relay Couplers Released . | . . . . Fabnet Peak Effective % . | . . . . Robots Rewired . | . . . . Allies Hacked . | . . . . Hacks Repelled . | . . . . Allies | -11 -10 -10 -10 -------- Run | Yrd Mat Min Sub Total Allies 2 | . . 2 . Largest Group 2 | . . 2 1 Highest-Rated Group 42 | . . 42 31 Highest-Rated Ally 31 | . . 31 31 Total Orders . | . . . . Ally Attacks 3 | . . . 3 Total Damage 65 | . . . 65 Kills . | . . . . Allies Corrupted . | . . . . Allies Melted . | . . . . Intel | -11 -10 -10 -10 ------- Run | Yrd Mat Min Sub Active Infowar (turns) . | . . . . Robot Analysis Total . | . . . . Derelict Logs Recovered 1 | . . 1 . Drone Launches . | . . . . Drone Recoveries . | . . . . Exploration | -11 -10 -10 -10 ------------- Run | Yrd Mat Min Sub Turns Passed 1198 | 62 600 344 192 Spaces Moved 758 | 43 359 248 108 Core 17 | 7 1 . 9 Treads 33 | . . . 33 Legs 708 | 36 358 248 66 Wheels . | . . . . Hover . | . . . . Flight . | . . . . Fastest Speed 50 | 50 100 120 120 Average Speed 121 | 112 119 120 136 Slowest Speed 190 | 120 120 120 190 Overloaded Moves . | . . . . Propulsion Burnouts . | . . . . Robots Hopped . | . . . . Potential Cave-ins . | . . . . Cave-ins Triggered . | . . . . Exploration Rate (%) 33 | 3 62 58 10 Regions Visited 3 Branch Regions 2 Pre-discovered Areas . | . . . . Known Exits Taken 1 | . 1 . . Unknown Exits Taken 2 | 1 . 1 . Scrap Searched . | . . . . Spaces Dug . | . . . . Terrain Destroyed 13 | . . . 13 Melee . | . . . . Projectile . | . . . . AOE 13 | . . . 13 Terrain Rammed . | . . . . Walls Destroyed . | . . . . Machines Disabled . | . . . . Actions | -11 -10 -10 -10 --------- Run | Yrd Mat Min Sub Total 917 | 54 460 271 132 Wait 36 | . 28 6 2 Move 755 | 42 358 247 108 Hop . | . . . . Pick Up 14 | 6 6 . 2 Fast Attach 16 | 6 9 . 1 Attach 6 | . . 1 5 Detach 1 | . 1 . . Swap 7 | . 5 . 2 Drop 16 | . 15 . 1 Fire 59 | . 37 11 11 Melee . | . . . . Ram . | . . . . Kick 7 | . 1 6 . Crush . | . . . . Escape Stasis . | . . . . Rewire . | . . . . Trap . | . . . . Miscellaneous . | . . . . Route ------- -11/Scrapyard -10/Materials (discovered 2 exits: [*Mat] / *Min) -10/Mines (discovered 3 exits: [*Mat x2] / [*Sub]) -10/Subcaves (discovered 1 exit: [*Mat]) History --------- Turn | Location | Event 9 | -11/Scrapyard | Discovered new exit (range 15) 63 | -11/Scrapyard | Entered Materials 305 | -10/Materials | Build established: Mutant 412 | -10/Materials | Identified exit to Mines 477 | -10/Materials | Discovered new exit (range 16) 663 | -10/Materials | Entered Mines 721 | -10/Mines | Discovered new exit (range 7) 831 | -10/Mines | Learned location of 1 exit from Materials 837 | -10/Mines | Discovered new exit (range 15) 994 | -10/Mines | Discovered new exit (range 11) 1007 | -10/Mines | Entered Subcaves 1007 | -10/Subcaves | Accompanied by 1 ally 1008 | -10/Subcaves | Approached by a straggling Scientist 1012 | -10/Subcaves | Led the pair of lost Derelicts to an unsafe place 1064 | -10/Subcaves | Shifting Twisted Machinery released Barrage Gun 1087 | -10/Subcaves | Core integrity fell below 50% 1113 | -10/Subcaves | Core integrity fell below 20% 1152 | -10/Subcaves | Lost 6 parts (1p2n1u2w) 1155 | -10/Subcaves | Discovered new exit (range 7) 1162 | -10/Subcaves | Shifting Twisted Machinery released Sub. Optics 1199 | -10/Subcaves | Destroyed by 00-AYY(R) with Subdweller Shrapnel Launcher Last Messages --------------- 01121_ Assault Rifle destroyed. 01122_ C5-VQP(R) destroyed. 01127_ Subatomizers dissect the Imp. Heat Sink. 01127_ The unstable cave ceiling collapses. 01131_ Acquired 7 matter. 01132_ The unstable cave ceiling collapses. 01136_ Acquired 65 matter. 01141_ Subatomizers dissect the Imp. Heat Sink. 01141_ Dropped Aluminum Leg. 01143_ Acquired Imp. Heat Sink. 01146_ The unstable cave ceiling collapses. 01151_ Acquired Barrage Gun. 01152_ Subatomizers dissect the Carbon-fiber Leg. 01155_ EXIT=FOUND Sub. Optics falls loose from the Twisted Machinery. 01173_ Acquired Sub. Optics. 01196_ Critical hit (Destroy). 01196_ Grenade Launcher destroyed. Map ----- +----------------------------------------------------+ | ?????????????????????????????????????????????????? | | ?????????????????????????????????????????????????? | | ?????????????????????????????????????????????????? | | ?????????????????????????????????????????????????? | | ?????????????????????????????????????????????????? | | ?????????????????????????????????????????????????? | | ?????????????????????????????????????????????????? | | ?????????????????????????????????????????????????? | | ?????????"????????????????????????? ?????????????? | | ????????? ##?????????????????????? ?????????????? | | ## ???### #?????????????????????# ?????????????? | | # ?? # "????????????????????# ??????????????? | | ? ?? # #???????????????????# ??????????????? | | ? ?? " "??????????????????# #??????????????? | | ?# #? ??????????????? ??# ##?????????????? | | ## #?? ??????????????? ## ##????????????? | | # #### #???????????????" ;# ##???????????? | | ## #???????????????" ;; #???????????? | | ## #????####???????;; #???????????? | | ## #???## ##?????? ; R ?????????????? | | # ##### " "#?????#;;R;; ???????????????? | | """ ##??### ;;#?????????????????? | | # ="""""# #### ; #?????????????????? | | # ## =["""" " "#" ;#??????????????????? | | ?# # " "" ## "##??????????????????? | | ?## # " ### ###"" "@####???????????????????? | | ??# ##?# #?#"" "#??????????????????????? | | ### & &# ##?## #?## "#??????????????????????? | | "##?#"" ### # ##??????????????????????? | | "### " ## ###???????????????????????? | | ### ### " ###??????????????????????? | | #####?### ### <"" #??????????????????????? | | ##????????# #?#"# """""#?????????????????????? | | #??????????###?####""""""""#?????????????????????? | | #?????????????????##"##"""##?????????????????????? | | ???????????????????########??????????????????????? | | ?????????????????????????????????????????????????? | | ?????????????????????????????????????????????????? | | ?????????????????????????????????????????????????? | | ?????????????????????????????????????????????????? | | ?????????????????????????????????????????????????? | | ?????????????????????????????????????????????????? | | ?????????????????????????????????????????????????? | | ?????????????????????????????????????????????????? | | ?????????????????????????????????????????????????? | | ?????????????????????????????????????????????????? | | ?????????????????????????????????????????????????? | | ?????????????????????????????????????????????????? | | ?????????????????????????????????????????????????? | | ?????????????????????????????????????????????????? | +----------------------------------------------------+ Best States ------------- Heat Dissipation 39 Energy Generation 10 Energy Capacity 250 Matter Stores 300 Matter Capacity 300 Sight Range 16 Terrain Scan Density 10 Weapon Shielding 33 Evasion (%) 55 Recoil Reduction 2 Item Schematics ----------------- None Robot Schematics ------------------ None Fabricated ------------ Nothing Repaired ---------- Nothing Studied --------- None Alien Tech Used ----------------- None Achievements -------------- None Challenges ------------ None Game ------ Seed GravjetStealthRifle Manual? 0 Play Time 00:20:28 Cumulative 14.0 hours Start 2026.06.25 @ 22:13:10 End 2026.06.25 @ 22:34:57 Sessions 1 Manual Loads 0 Difficulty Rogue Special Mode None Game No. 21 Rogue 21 Adventurer 0 Explorer 0 Win Type - Total 0 Types 0/0/0/0/0/0/0/0/0/0 Lore% 6 Gallery% 14 Achievement% 13 Wizard Run 0 Options --------- Layout 1 ASCII 0 Keyboard 0 Movement Numpad Keybinds 0 Fullscreen 1 Font 32/SmallcapsGlow Map View 50x35 Zoom Use 0% Tactical HUD 1 Map Filters NONE Filters NONE Steam 1 RUN: 33242353-31cd-4636-b07c-0ed528c0c647